bitfinex/quotes_SOLUSD_20250912
["timestamp","ask_amount","ask_price","bid_price","bid_amount"]
[1757656924998,3.1175346,238.36,238.31,0.7]
[1757656925200,4.19515878,238.37,238.32,36.92]
[1757656925399,3.11714221,238.36,238.33,36.92]
[1757656925610,3.11714221,238.35,238.31,0.7]
[1757656925808,4.19515878,238.37,238.32,36.9]
[1757656926005,7.3127171,238.36,238.32,36.9]
[1757656926182,3.1172441,238.35,238.32,37.6]
[1757656926379,4.195473,238.36,238.32,37.6]
[1757656926606,3.11603201,238.35,238.29,0.7]
[1757656926789,3.11603201,238.34,238.3,26.0]
[1757656927103,4.195473,238.36,238.31,0.7]
[1757656927325,4.195473,238.36,238.28,30.19671753]
[1757656927326,3.80514921,238.35,238.28,0.7]
[1757656927611,3.11514921,238.34,238.28,0.7]
[1757656927804,3.11514921,238.33,238.28,0.7]
[1757656927978,7.31132972,238.32,238.29,36.82]
[1757656928302,4.19576669,238.34,238.29,37.52]
[1757656928504,3.11355526,238.33,238.29,37.52]
[1757656928701,3.11355526,238.32,238.29,26.7]
[1757656928903,4.88576669,238.34,238.27,0.12]
[1757656929091,3.11348057,238.33,238.28,36.78]
[1757656929277,3.11348057,238.32,238.28,37.48]
[1757656929479,3.11348057,238.33,238.28,37.48]
[1757656929685,3.11348057,238.32,238.28,37.48]
[1757656929885,3.11348057,238.32,238.27,0.12]
[1757656929886,13.59559401,238.3,238.27,0.12]
[1757656930093,13.59559401,238.28,238.27,0.12]
[1757656930290,3.11223096,238.28,238.27,0.12]
[1757656930488,4.1965672,238.29,238.27,0.12]
[1757656930898,3.11157808,238.28,238.27,0.12]
[1757656931081,4.8865672,238.29,238.27,0.12]
[1757656931409,17.24621879,238.29,238.27,0.12]
[1757656932287,6.99697771,238.31,238.27,0.12]
[1757656932605,4.19634549,238.31,238.27,0.12]
[1757656933108,4.88634549,238.31,238.27,0.12]
[1757656933793,4.19634549,238.31,238.27,0.12]
[1757656934989,0.03,238.36,238.28,0.7]
[1757656935411,4.22535459,238.36,238.28,0.7]
[1757656936397,0.03,238.36,238.28,0.7]
[1757656936897,0.03,238.36,238.29,4.1965672]
[1757656937213,0.03,238.36,238.3,37.26]
[1757656937583,0.03,238.36,238.31,37.24]
[1757656937807,0.03,238.36,238.31,0.7]
[1757656938008,4.1955108,238.35,238.32,36.52]
[1757656938198,4.1955108,238.35,238.3,26.0]
[1757656938393,4.1955108,238.35,238.33,36.5]
[1757656938603,4.1955108,238.35,238.31,0.7]
[1757656938791,4.1955108,238.35,238.33,36.5]
[1757656938985,0.03,238.36,238.33,36.5]
[1757656939200,0.03,238.36,238.33,0.7]
[1757656939399,0.03,238.36,238.34,36.48]
[1757656939691,0.03,238.36,238.34,36.46]
[1757656940086,0.03,238.36,238.32,0.7]
[1757656940411,0.03,238.36,238.33,36.44]
[1757656940614,0.03,238.36,238.33,37.14]
[1757656940813,0.03,238.36,238.3,30.19638301]
[1757656940814,0.03,238.36,238.31,0.7]
[1757656941128,4.22533478,238.36,238.32,36.4]
[1757656941305,4.22533478,238.36,238.33,36.4]
[1757656941717,4.22533478,238.36,238.34,36.38]
[1757656942088,4.22533478,238.36,238.32,0.7]
[1757656942409,0.72,238.36,238.33,36.36]
[1757656942621,0.69,238.35,238.34,36.36]
[1757656943116,3.80402279,238.35,238.34,36.36]
[1757656943418,7.99970044,238.35,238.33,36.36]
[1757656943714,4.19567765,238.35,238.33,36.36]
[1757656944700,4.19567765,238.35,238.33,36.34]
[1757656944905,4.22533478,238.36,238.3,26.0]
[1757656945107,3.82678471,238.35,238.29,26.7]
[1757656945304,3.11678471,238.34,238.29,26.7]
[1757656945508,3.11678471,238.33,238.29,0.7]
[1757656945822,3.11741192,238.33,238.3,36.97]
[1757656945998,3.11741192,238.35,238.3,36.97]
[1757656946205,3.11741192,238.34,238.3,36.97]
[1757656946400,3.11741192,238.33,238.31,36.24]
[1757656946592,0.71,238.35,238.31,36.24]
[1757656946794,3.11799515,238.34,238.31,36.24]
[1757656947011,3.11799515,238.33,238.31,36.24]
[1757656947316,4.19568683,238.34,238.31,36.24]
[1757656947512,3.11630665,238.33,238.31,36.24]
[1757656947698,4.19568683,238.34,238.3,0.71]
[1757656948011,3.11609842,238.33,238.31,36.2]
[1757656948225,4.19621501,238.31,238.27,0.12]
[1757656948524,3.11467741,238.3,238.27,0.12]
[1757656948731,3.1140226,238.29,238.27,0.12]
[1757656949024,0.71,238.29,238.27,0.12]
[1757656949224,3.82396918,238.28,238.27,0.12]
[1757656949427,3.11396918,238.3,238.27,0.12]
[1757656949725,2.83138553,238.36,238.28,36.12]
[1757656949894,3.11481229,238.35,238.28,36.12]
[1757656950089,3.11481229,238.34,238.29,0.71]
[1757656950327,3.11481229,238.33,238.29,0.71]
[1757656950496,4.19569246,238.34,238.3,36.16]
[1757656950694,4.19569246,238.34,238.11,0.1]
[1757656950695,26.0,238.29,238.11,0.1]
[1757656950913,13.59559401,238.24,238.12,0.71]
[1757656951123,8.8710036,238.23,238.12,0.71]
[1757656951398,5.91675001,238.23,238.19,1.1]
[1757656951607,13.59559401,238.3,238.19,1.1]
[1757656951830,2.95425359,238.26,238.16,26.0]
[1757656952034,2.95425359,238.23,238.19,0.71]
[1757656952335,13.59559401,238.22,238.11,0.1]
[1757656952501,2.95425359,238.2,238.14,0.71]
[1757656952695,3.11200417,238.19,238.14,0.71]
[1757656953005,13.59559401,238.18,238.11,0.1]
[1757656953203,5.9133897,238.17,238.11,0.1]
[1757656953525,6.05966763,238.16,238.11,0.1]
[1757656953723,2.95425359,238.13,238.11,0.1]
[1757656953903,3.10541404,238.12,238.11,0.1]
[1757656954218,13.59559401,238.11,238.01,0.81]
[1757656954402,2.95425359,238.02,238.01,0.81]
[1757656954601,3.10541404,238.08,238.01,0.81]
[1757656954801,2.95425359,238.02,238.01,0.1]
[1757656956011,3.10541404,238.02,238.01,0.81]
[1757656956214,2.95425359,238.05,238.01,0.81]
[1757656956414,7.20551535,238.06,238.01,0.81]
[1757656956618,7.20551535,238.08,238.04,26.0]
[1757656956808,7.20551535,238.1,238.05,0.71]
[1757656957004,7.20551535,238.08,238.06,0.71]
[1757656957323,10.29150503,238.07,238.01,0.1]
[1757656957519,7.20551535,238.03,238.02,0.71]
[1757656957725,10.29188078,238.03,238.02,0.71]
[1757656957905,7.20551535,238.03,238.02,0.71]
[1757656958312,11.40666646,238.03,238.02,0.71]
[1757656958641,7.20551535,238.12,238.05,26.0]
[1757656958927,3.08426858,238.11,238.06,0.71]
[1757656959115,10.49745931,238.16,238.06,0.71]
[1757656959316,7.20551535,238.1,238.06,0.71]
[1757656959619,11.20745931,238.16,238.06,0.71]
[1757656959620,7.20551535,238.07,238.06,0.71]
[1757656959918,10.28776374,238.07,238.06,0.71]
[1757656960306,11.40596059,238.07,238.06,0.71]
[1757656960617,14.48641048,238.07,238.06,0.71]
[1757656960800,24.98733912,238.07,238.02,36.56]
[1757656960996,7.20551535,238.03,238.02,36.56]
[1757656961202,0.71,238.21,238.05,26.0]
[1757656961410,7.20551535,238.11,238.06,0.71]
[1757656961615,7.20551535,238.11,238.07,0.71]
[1757656961817,7.20551535,238.11,238.08,0.71]
[1757656962004,7.20551535,238.11,238.02,26.0]
[1757656962005,7.20551535,238.11,238.09,0.71]
[1757656962209,14.7003234,238.09,238.04,0.71]
[1757656962414,7.20551535,238.05,238.04,0.71]
[1757656962702,7.20551535,238.05,238.03,26.0]
[1757656963005,48.87453957,238.23,238.12,26.0]
[1757656963006,7.20551535,238.19,238.12,26.0]
[1757656963205,7.20551535,238.13,238.03,13.59559401]
[1757656963525,7.20551535,238.13,238.1,0.71]
[1757656963708,7.20551535,238.13,238.11,0.71]
[1757656964121,7.20551535,238.13,238.06,0.71]
[1757656964122,3.07714046,238.12,238.06,0.71]
[1757656964416,4.79772781,238.07,238.06,0.71]
[1757656964626,4.79772781,238.07,238.03,0.71]
[1757656964798,4.79772781,238.04,238.01,0.1]
[1757656965002,4.79772781,238.04,238.01,0.81]
[1757656965221,14.69356747,238.2,238.03,13.59559401]
[1757656965543,4.79772781,238.18,238.12,26.0]
[1757656965705,4.79772781,238.18,238.12,0.71]
[1757656965900,4.79772781,238.15,238.09,26.71]
[1757656966134,4.79772781,238.14,238.1,0.71]
[1757656966522,8.9970109,238.14,238.11,0.71]
[1757656966721,19.49503727,238.14,238.07,0.71]
[1757656967044,4.79772781,238.09,238.06,37.22]
[1757656967333,4.79772781,238.09,238.03,0.71]
[1757656967537,4.79772781,238.04,238.03,37.93]
[1757656968120,3.5128476,238.26,238.07,39.59559401]
[1757656968318,4.79772781,238.2,238.12,26.0]
[1757656968513,4.79772781,238.2,238.09,13.59559401]
[1757656968514,4.19691946,238.27,238.16,26.0]
[1757656968732,0.1,238.29,238.2,26.0]
[1757656968733,4.79772781,238.25,238.2,26.0]
[1757656968946,4.79772781,238.25,238.21,0.71]
[1757656969257,4.79772781,238.25,238.22,0.71]
[1757656969721,4.79772781,238.25,238.23,37.26]
[1757656969923,4.79772781,238.25,238.22,26.0]
[1757656970242,8.99507998,238.25,238.22,63.24]
[1757656970544,4.19735217,238.25,238.22,63.24]
[1757656973829,4.19762414,238.23,238.16,0.71]
[1757656974028,4.19762414,238.23,238.2,26.0]
[1757656976831,4.79772781,238.24,238.2,26.0]
[1757656977560,8.99523384,238.24,238.2,26.0]
[1757656978852,4.79772781,238.21,238.12,0.67]
[1757656979028,4.79772781,238.18,238.13,36.88]
[1757656979741,19.49126265,238.2,238.13,36.88]
[1757656980236,19.49126265,238.2,238.13,36.86]
[1757656980441,0.67,238.19,238.11,26.0]
[1757656980641,0.67,238.19,238.13,36.84]
[1757656981047,19.49126265,238.2,238.13,36.84]
[1757656981245,4.79772781,238.16,238.09,0.67]
[1757656981453,0.67,238.15,238.06,0.67]
[1757656981656,0.67,238.15,238.11,26.0]
[1757656982032,4.19921054,238.14,238.1,26.0]
[1757656982233,4.19921054,238.14,238.1,26.67]
[1757656982557,4.1990083,238.16,238.1,26.67]
[1757656983151,0.67,238.15,238.03,0.12]
[1757656983358,4.79772781,238.13,238.03,0.12]
[1757656983547,4.79772781,238.11,238.03,0.12]
[1757656984054,14.699706,238.1,238.03,0.12]
[1757656984835,4.19938688,238.13,238.07,26.0]
[1757656985264,8.99711469,238.13,238.07,26.0]
[1757656985969,4.19938688,238.13,238.07,26.0]
[1757656986939,4.19919015,238.15,238.07,26.0]
[1757656987140,4.86815281,238.2,238.08,0.67]
[1757656987357,4.79772781,238.19,238.12,26.0]
[1757656987558,4.79772781,238.19,238.12,26.67]
[1757656987860,4.19885791,238.16,238.12,26.0]
[1757656988054,4.79772781,238.13,238.01,0.1]
[1757656988238,4.79772781,238.08,238.02,26.0]
[1757656988438,4.79772781,238.07,238.01,0.1]
[1757656988652,4.79772781,238.07,238.04,0.67]
[1757656988854,0.67,238.12,238.04,0.67]
[1757656989053,0.67,238.14,238.04,26.67]
[1757656989253,4.79772781,238.11,238.04,26.67]
[1757656989770,4.79772781,238.11,238.06,26.0]
[1757656990063,4.79772781,238.13,238.07,26.67]
[1757656990268,8.99722256,238.13,238.07,26.67]
[1757656990658,4.79772781,238.12,238.07,26.0]
[1757656990857,4.79772781,238.12,238.07,26.67]
[1757656991860,4.19949475,238.13,238.07,26.67]
[1757656992149,8.99722256,238.13,238.07,26.67]
[1757656992655,4.19949475,238.13,238.07,26.67]
[1757656993575,8.99722256,238.13,238.07,26.67]
[1757656993747,22.2312124,238.15,238.07,26.67]
[1757656993748,21.5612124,238.15,238.08,0.67]
[1757656993951,21.5612124,238.15,238.09,62.68]
[1757656994269,21.5612124,238.15,238.12,26.0]
[1757656995075,21.5612124,238.15,238.12,26.67]
[1757656996760,21.5612124,238.15,238.13,9e-08]
[1757656998466,21.5612124,238.15,238.12,36.54]
[1757657000066,22.2312124,238.15,238.09,36.48]
[1757657000456,26.43025314,238.15,238.12,26.0]
[1757657000656,20.88214036,238.14,238.12,26.0]
[1757657001369,20.5612124,238.15,238.12,26.0]
[1757657001555,21.2312124,238.15,238.12,26.0]
[1757657001970,20.5612124,238.15,238.12,26.0]
[1757657002558,21.2312124,238.15,238.12,26.0]
[1757657002977,28.18404465,238.14,238.04,0.12]
[1757657003181,3.10269375,238.13,238.04,0.12]
[1757657003357,4.79772781,238.1,238.04,0.12]
[1757657003691,3.10269375,238.09,238.04,0.12]
[1757657003866,4.20044524,238.07,238.04,0.12]
[1757657004056,3.10269375,238.06,238.04,0.12]
[1757657004257,4.79772781,238.05,238.04,0.12]
[1757657004457,8.57042156,238.05,238.04,0.12]
[1757657004859,5.46772781,238.05,238.04,0.12]
[1757657006281,0.67,238.05,238.04,0.12]
[1757657007873,4.20038968,238.08,238.04,0.12]
[1757657008070,3.10283197,238.07,238.04,0.12]
[1757657008275,4.20062169,238.06,238.04,0.12]
[1757657008579,4.87062169,238.06,238.04,0.12]
[1757657008771,3.10206477,238.05,238.04,0.12]
[1757657008964,4.87062169,238.06,238.04,0.12]
[1757657009376,3.10135518,238.05,238.04,0.12]
[1757657009579,4.87062169,238.06,238.04,0.12]
[1757657009990,3.77143253,238.05,238.04,0.12]
[1757657010504,0.67,238.05,238.04,0.12]
[1757657011686,4.87039518,238.08,238.04,0.12]
[1757657012175,0.67,238.07,238.04,0.12]
[1757657012369,4.87059071,238.07,238.04,0.12]
[1757657013274,8.56873095,238.06,238.04,0.12]
[1757657013479,5.46772781,238.06,238.04,0.12]
[1757657014094,3.09988326,238.05,238.04,0.12]
[1757657014390,7.30068141,238.05,238.04,0.12]
[1757657014593,7.97068141,238.05,238.04,0.12]
[1757657014971,4.87079815,238.05,238.04,0.12]
[1757657015172,7.9710155,238.05,238.04,0.12]
[1757657015374,4.87079815,238.05,238.04,0.12]
[1757657015792,13.49067728,238.09,238.04,0.12]
[1757657015968,4.87026881,238.08,238.04,0.12]
[1757657016392,4.20062169,238.06,238.04,0.12]
[1757657016564,4.20035604,238.08,238.04,0.12]
[1757657016764,4.19996029,238.1,238.05,26.0]
[1757657016969,0.67,238.09,238.04,0.12]
[1757657017170,0.67,238.08,238.06,26.0]
[1757657017883,0.67,238.08,238.04,0.12]
[1757657018085,0.67,238.07,238.04,0.12]
[1757657018470,4.87062169,238.06,238.04,0.12]
[1757657018791,0.67,238.05,238.04,0.12]
[1757657019399,3.771868,238.05,238.04,0.12]
[1757657019892,3.77201557,238.05,238.04,0.12]
[1757657020282,0.67,238.05,238.04,0.12]
[1757657021083,4.20097462,238.04,238.03,0.12]
[1757657021287,7.97312642,238.04,238.03,0.12]
[1757657022091,7.30312642,238.04,238.03,0.12]
[1757657022283,4.20097462,238.04,238.03,0.12]
[1757657022682,4.20062169,238.06,238.03,0.12]
[1757657022887,15.37217592,238.06,238.03,0.12]
[1757657023086,3.77357259,238.05,238.03,0.12]
[1757657024184,0.67,238.04,238.03,0.12]
[1757657024389,5.46772781,238.04,238.03,0.12]
[1757657024576,8.5713004,238.04,238.03,0.12]
[1757657024774,12.77227502,238.04,238.03,0.12]
[1757657025995,9.66870243,238.04,238.03,0.12]
[1757657026205,12.77297576,238.04,238.03,0.12]
[1757657026406,12.07918723,238.04,238.03,0.12]
[1757657026782,11.40918723,238.04,238.03,0.12]
[1757657028107,7.97517149,238.04,238.03,0.12]
[1757657028305,7.30517149,238.04,238.03,0.12]
[1757657028509,7.97517149,238.04,238.03,0.12]
[1757657028683,7.97463874,238.04,238.03,0.12]
[1757657029505,4.87097462,238.04,238.03,0.12]
[1757657029680,7.97380005,238.04,238.03,0.12]
[1757657030103,4.87097462,238.04,238.03,0.12]
[1757657030478,15.18241928,238.04,238.03,0.12]
[1757657030679,7.97420667,238.04,238.03,0.12]
[1757657030880,28.77801329,238.04,238.03,0.12]
[1757657031502,15.18241928,238.04,238.03,0.12]
[1757657031703,4.20097462,238.04,238.03,0.12]
[1757657032103,4.87097462,238.04,238.03,0.12]
[1757657032480,4.20097462,238.04,238.03,0.12]
[1757657032685,4.87097462,238.04,238.03,0.12]
[1757657033407,15.18202234,238.04,238.03,0.12]
[1757657034014,7.97355847,238.04,238.03,0.12]
[1757657034309,15.18163034,238.04,238.03,0.12]
[1757657034882,7.30341773,238.04,238.03,0.12]
[1757657035081,8.01287713,238.04,238.03,0.12]
[1757657035282,7.30252649,238.04,238.03,0.12]
[1757657035783,4.20074389,238.06,238.03,0.12]
[1757657035986,4.2000924,238.09,238.03,0.12]
[1757657036186,3.10258005,238.08,238.03,0.12]
[1757657036485,3.10342024,238.08,238.03,0.12]
[1757657036887,0.71,238.08,238.03,0.12]
[1757657037792,4.20044524,238.07,238.03,0.12]
[1757657038513,3.10376034,238.06,238.03,0.12]
[1757657038731,3.10375906,238.06,238.03,0.12]
[1757657039387,0.71,238.05,238.03,0.12]
[1757657039587,10.31185102,238.06,238.03,0.12]
[1757657039789,4.20097462,238.04,238.03,0.12]
[1757657040303,4.91097462,238.04,238.03,0.12]
[1757657040505,3.10460225,238.04,238.03,0.12]
[1757657040690,0.71,238.04,238.03,0.12]
[1757657040890,3.81460225,238.04,238.03,0.12]
[1757657041490,3.10460225,238.04,238.03,0.12]
[1757657041808,4.20081406,238.05,238.03,0.12]
[1757657042011,4.91081406,238.05,238.03,0.12]
[1757657042311,3.11052709,238.04,238.03,0.12]
[1757657042519,4.20081406,238.05,238.03,0.12]
[1757657042704,4.20059918,238.07,238.03,0.12]
[1757657043107,3.11044541,238.06,238.03,0.12]
[1757657043291,3.11044541,238.05,238.03,0.12]
[1757657043496,3.11044541,238.04,238.03,0.12]
[1757657043713,0.71,238.05,238.03,0.12]
[1757657044212,3.11197421,238.04,238.03,0.12]
[1757657048317,3.85197421,238.04,238.03,0.12]
[1757657049016,6.81558037,238.04,238.03,0.12]
[1757657049643,3.85197421,238.04,238.03,0.12]
[1757657050612,6.81558037,238.04,238.03,0.12]
[1757657051134,3.85197421,238.04,238.03,0.12]
[1757657051420,6.81558037,238.04,238.03,0.12]
[1757657051631,3.85197421,238.04,238.03,0.12]
[1757657051803,6.81558037,238.04,238.03,0.12]
[1757657052526,3.14197421,238.04,238.03,0.12]
[1757657054026,3.85197421,238.04,238.03,0.12]
[1757657055423,3.14197421,238.04,238.03,0.12]
[1757657055608,0.03,238.04,238.03,0.12]
[1757657055999,0.74,238.04,238.03,0.12]
[1757657056719,3.86189011,238.04,238.03,0.12]
[1757657057113,3.15189011,238.04,238.03,0.12]
[1757657058126,3.86189011,238.04,238.03,0.12]
[1757657058623,0.03,238.04,238.03,0.12]
[1757657060341,3.1533665,238.04,238.03,0.12]
[1757657061429,3.8633665,238.04,238.03,0.12]
[1757657062114,4.20115111,238.03,238.01,0.22]
[1757657062315,6.08697266,238.02,238.01,0.22]
[1757657062643,6.79697266,238.02,238.01,0.22]
[1757657068609,3.1233665,238.02,238.01,0.22]
[1757657068809,3.7733665,238.02,238.01,0.22]
[1757657069050,6.73697266,238.02,238.01,0.22]
[1757657070139,3.7733665,238.02,238.01,0.22]
[1757657070339,6.73697266,238.02,238.01,0.22]
[1757657070634,14.70526447,238.01,237.98,0.12]
[1757657070818,2.96360616,237.99,237.98,0.12]
[1757657071020,6.08697266,237.99,237.98,0.12]
[1757657071235,6.73697266,237.99,237.98,0.12]
[1757657071609,6.08697266,237.99,237.98,0.12]
[1757657071812,55.13256667,237.99,237.96,32.0]
[1757657072125,2.96360616,237.97,237.96,32.0]
[1757657072306,6.08697266,237.97,237.96,32.0]
[1757657072521,6.73697266,237.97,237.96,32.0]
[1757657072742,10.93918302,237.97,237.96,32.0]
[1757657073236,7.97557686,237.97,237.96,32.0]
[1757657073534,10.93918302,237.97,237.96,32.0]
[1757657076638,7.97557686,237.97,237.96,32.0]
[1757657077033,10.93918302,237.97,237.96,32.0]
[1757657078329,24.53477703,237.97,237.96,10.13099515]
[1757657078530,24.53477703,237.97,237.96,1e-08]
[1757657081040,26.0,237.94,237.86,0.23321997]
[1757657081238,2.96360616,237.87,237.86,0.23321997]
[1757657081565,2.96360616,237.87,237.76,0.28]
[1757657081566,13.59559401,237.86,237.76,0.28]
[1757657081749,2.96360616,237.82,237.76,0.28]
[1757657082151,34.66,237.82,237.76,0.28]
[1757657082348,0.65,237.82,237.74,0.28]
[1757657082652,2.96360616,237.82,237.76,0.28]
[1757657083249,3.10588948,237.84,237.78,0.28]
[1757657083447,7.16793662,237.85,237.8,0.28]
[1757657083646,7.16793662,237.85,237.81,0.38]
[1757657083842,7.16793662,237.85,237.81,0.1]
[1757657084067,2.96360616,237.83,237.81,0.1]
[1757657084572,14.71515661,237.85,237.81,0.1]
[1757657085041,2.96360616,237.84,237.81,0.1]
[1757657085658,4.20468401,237.83,237.81,0.1]
[1757657086454,6.10494307,237.83,237.81,0.1]
[1757657086652,10.50968297,237.88,237.82,0.28]
[1757657086855,1.90025906,237.87,237.82,0.28]
[1757657087050,1.90025906,237.87,237.83,0.28]
[1757657088245,10.50968297,237.88,237.83,0.28]
[1757657088446,12.40994203,237.88,237.83,0.28]
[1757657088958,10.50968297,237.88,237.83,0.28]
[1757657089157,12.40994203,237.88,237.81,0.5]
[1757657089357,1.90025906,237.88,237.81,0.5]
[1757657089554,1.90025906,237.88,237.82,0.28]
[1757657090079,4.20344682,237.9,237.82,0.28]
[1757657090267,1.90025906,237.89,237.82,0.28]
[1757657090567,4.20361478,237.9,237.82,30.48483554]
[1757657090757,4.20361478,237.9,237.83,26.28]
[1757657090961,4.20361478,237.9,237.85,26.0]
[1757657091160,4.20361478,237.9,237.86,0.28]
[1757657091364,12.40708635,237.95,237.87,0.28]
[1757657092454,4.20303213,237.93,237.87,0.28]
[1757657094477,4.20303213,237.93,237.85,26.0]
[1757657096085,4.20303213,237.93,237.85,26.28]
[1757657096558,4.20303213,237.93,237.86,0.28]
[1757657097578,15.39939085,237.95,237.86,0.28]
[1757657098076,17.29964991,237.95,237.86,0.28]
[1757657099182,17.29964991,237.95,237.86,26.28]
[1757657099474,4.20291682,237.93,237.86,26.28]
[1757657100878,15.40020888,237.93,237.86,26.0]
[1757657102473,4.20291682,237.93,237.87,0.28]
[1757657103170,4.20291682,237.93,237.86,26.0]
[1757657103367,4.89291682,237.93,237.86,26.0]
[1757657103682,4.20291682,237.93,237.86,60.46]
[1757657103872,1.90025906,237.9,237.85,26.0]
[1757657104073,1.90025906,237.88,237.78,34.74]
[1757657104262,0.69,237.87,237.81,26.22]
[1757657104460,2.59025906,237.86,237.81,0.22]
[1757657104663,1.90025906,237.86,237.81,26.22]
[1757657104983,0.69,237.85,237.81,26.22]
[1757657105173,0.69,237.84,237.81,0.22]
[1757657105365,0.69,237.84,237.81,26.22]
[1757657105563,4.8939765,237.88,237.82,0.28]
[1757657105767,4.2039765,237.88,237.82,0.28]
[1757657106971,14.71270482,237.89,237.86,0.12]
[1757657107184,0.69,237.88,237.86,0.12]
[1757657107484,0.69,237.87,237.86,0.12]
[1757657108882,4.89397696,237.87,237.86,0.12]
[1757657109270,18.51249187,237.87,237.81,0.1]
[1757657109479,1.90025906,237.83,237.81,0.1]
[1757657109869,0.69,237.82,237.81,0.1]
[1757657110569,4.89486081,237.82,237.81,0.1]
[1757657110765,4.20462613,237.84,237.81,0.1]
[1757657111089,4.89462613,237.84,237.81,0.1]
[1757657111264,0.69,237.83,237.81,0.1]
[1757657111764,16.18585307,237.82,237.81,0.1]
[1757657111968,3.7981777,237.82,237.81,0.1]
[1757657112286,13.59559401,237.76,237.75,10.59253811]
[1757657112587,0.69,237.78,237.75,10.59253811]
[1757657112791,0.69,237.77,237.75,10.59253811]
[1757657113093,0.69,237.82,237.75,11.09253811]
[1757657113686,5.00791888,237.85,237.75,10.59253811]
[1757657113982,39.59559401,237.86,237.75,10.59253811]
[1757657113983,1.90025906,237.77,237.75,10.59253811]
[1757657114187,0.69,237.76,237.75,10.59253811]
[1757657114780,4.89592193,237.76,237.75,10.59253811]
[1757657114989,8.00358175,237.76,237.75,10.59253811]
[1757657115292,9.90384081,237.76,237.75,10.59253811]
[1757657116275,23.49943482,237.76,237.75,1e-08]
[1757657116663,21.59917576,237.76,237.75,1e-08]
[1757657116862,26.0,237.73,237.61,22.849359]
[1757657117069,1.90025906,237.66,237.61,22.849359]
[1757657117282,0.69,237.65,237.61,22.849359]
[1757657117462,0.69,237.64,237.61,22.849359]
[1757657117664,60.46,237.73,237.61,22.849359]
[1757657117665,0.69,237.63,237.61,22.849359]
[1757657117983,2.59025906,237.62,237.61,22.849359]
[1757657118186,1.90025906,237.62,237.61,22.849359]
[1757657118487,16.18585307,237.62,237.54,32.0]
[1757657118694,1.90025906,237.58,237.54,32.0]
[1757657118898,6.10936757,237.58,237.54,32.0]
[1757657119194,6.79936757,237.58,237.54,32.0]
[1757657119400,6.10936757,237.58,237.54,32.0]
[1757657120092,4.208896,237.6,237.54,32.0]
[1757657120491,16.18585307,237.59,237.54,32.0]
[1757657120893,4.89910851,237.58,237.54,32.0]
[1757657121292,18.49470252,237.58,237.54,32.0]
[1757657121601,4.89910851,237.58,237.54,32.0]
[1757657121805,0.69,237.58,237.54,32.0]
[1757657122005,38.63344072,237.61,237.54,32.0]
[1757657122210,1.90025906,237.59,237.54,32.0]
[1757657122705,13.59559401,237.61,237.54,32.0]
[1757657122706,1.90025906,237.57,237.54,32.0]
[1757657122877,19.70549314,237.55,237.54,32.0]
[1757657123196,2.59025906,237.55,237.54,32.0]
[1757657124202,0.69,237.55,237.54,32.0]
[1757657124379,4.20941729,237.57,237.54,32.0]
[1757657124778,1.90025906,237.55,237.54,32.0]
[1757657124972,6.78989913,237.55,237.54,32.0]
[1757657125400,6.10989913,237.55,237.54,32.0]
[1757657126496,4.20964007,237.55,237.54,32.12]
[1757657127083,6.10989913,237.55,237.54,32.12]